fUSD/lending_fUSD_20240915
["ID","MTS","AMOUNT","RATE_DAILY","PERIOD"]
[338198427,1726383064142,-500.0,0.00013537,2]
[338198428,1726383064151,-1115.78,0.00013537,2]
[338198429,1726383064162,-1623.55,0.00013537,2]
[338198430,1726383064174,-2826.45,0.00013537,2]
[338198431,1726383064183,-500.0,0.00013537,2]
[338198432,1726383064192,-500.0,0.00013537,2]
[338198433,1726383064202,-500.0,0.00013537,2]
[338198434,1726383064212,-1557.01,0.00013537,2]
[338198435,1726383064222,-500.0,0.00013537,2]
[338198436,1726383064231,-515.40890978,0.00013537,2]
[338198437,1726383064241,-500.0,0.00013537,2]
[338198438,1726383064253,-500.0,0.00013537,2]
[338198439,1726383064263,-627.37,0.00013537,2]
[338198440,1726383064272,-500.0,0.00013537,2]
[338198441,1726383064282,-842.96,0.00013537,2]
[338198442,1726383064292,-500.0,0.00013537,2]
[338198443,1726383064301,-1495.79,0.00013537,2]
[338198444,1726383064311,-500.0,0.00013537,2]
[338198445,1726383064322,-1662.01,0.00013537,2]
[338198446,1726383064332,-500.0,0.00013537,2]
[338198447,1726383064342,-2035.07,0.00013537,2]
[338198448,1726383064352,-500.0,0.00013537,2]
[338198449,1726383064361,-500.0,0.00013537,2]
[338198450,1726383064371,-598.26847801,0.00013537,2]
[338198451,1726383064380,-500.0,0.00013537,2]
[338198452,1726383064390,-1440.12,0.00013537,2]
[338198453,1726383064399,-500.0,0.00013537,2]
[338198454,1726383064409,-500.0,0.00013537,2]
[338198455,1726383064418,-871.39,0.00013537,2]
[338198456,1726383064428,-1117.48,0.00013537,2]
[338198457,1726383064437,-2138.62,0.00013537,2]
[338198458,1726383064447,-1797.48,0.00013537,2]
[338198459,1726383064457,-2423.64,0.00013537,2]
[338198460,1726383064466,-2394.69,0.00013537,2]
[338198461,1726383064475,-500.0,0.00013537,2]
[338198462,1726383064484,-972.52,0.00013537,2]
[338198463,1726383064494,-6375.44,0.00013537,2]
[338198464,1726383064504,-500.0,0.00013537,2]
[338198465,1726383064514,-500.0,0.00013537,2]
[338198466,1726383064523,-500.0,0.00013537,2]
[338198467,1726383064533,-500.0,0.00013537,2]
[338198468,1726383064542,-5809.13,0.00013537,2]
[338198469,1726383064552,-583.97,0.00013537,2]
[338198470,1726383064561,-500.0,0.00013537,2]
[338198471,1726383064571,-598.67,0.00013537,2]
[338198472,1726383064581,-964.89,0.00013537,2]
[338198473,1726383064590,-500.0,0.00013537,2]
[338198474,1726383064600,-1442.62,0.00013537,2]
[338198475,1726383064610,-1263.06,0.00013537,2]
[338198476,1726383064620,-1070.5,0.00013537,2]
[338198477,1726383064630,-4208.49,0.00013537,2]
[338198478,1726383064640,-500.0,0.00013537,2]
[338198479,1726383064649,-500.0,0.00013537,2]
[338198480,1726383064659,-500.0,0.00013537,2]
[338198481,1726383064668,-500.0,0.00013537,2]
[338198482,1726383064677,-2183.36,0.00013537,2]
[338198483,1726383064687,-2510.62,0.00013537,2]
[338198484,1726383064696,-4968.65,0.00013537,2]
[338198485,1726383064706,-5216.02,0.00013537,2]
[338198486,1726383064716,-593.94,0.00013537,2]
[338198487,1726383064725,-1139.71,0.00013537,2]
[338198488,1726383064737,-1853.27,0.00013537,2]
[338198489,1726383064746,-500.0,0.00013537,2]
[338198490,1726383064755,-786.04,0.00013537,2]
[338198491,1726383064764,-500.0,0.00013537,2]
[338198492,1726383064774,-500.0,0.00013537,2]
[338198493,1726383064783,-500.0,0.00013537,2]
[338198494,1726383064794,-500.0,0.00013537,2]
[338198495,1726383064804,-5093.06,0.00013537,2]
[338198496,1726383064814,-2138.12,0.00013537,2]
[338198497,1726383064834,-500.0,0.00013537,2]
[338198498,1726383064843,-500.0,0.00013537,2]
[338198499,1726383064852,-584.52,0.00013537,2]
[338198500,1726383064862,-1286.64,0.00013537,2]
[338198501,1726383064871,-1238.33,0.00013537,2]
[338198502,1726383064880,-1035.07,0.00013537,2]
[338198503,1726383064889,-500.0,0.00013537,2]
[338198504,1726383064898,-1031.37,0.00013537,2]
[338198505,1726383064907,-500.0,0.00013537,2]
[338198506,1726383064917,-2515.78,0.00013537,2]
[338198507,1726383064926,-537.58,0.00013537,2]
[338198508,1726383064935,-573.58,0.00013537,2]
[338198509,1726383064944,-1195.46,0.00013537,2]
[338198510,1726383064954,-2078.82,0.00013537,2]
[338198511,1726383064963,-670.69,0.00013537,2]
[338198512,1726383064972,-500.0,0.00013537,2]
[338198513,1726383064982,-500.0,0.00013537,2]
[338198514,1726383064991,-500.0,0.00013537,2]
[338198515,1726383065000,-2229.56,0.00013537,2]
[338198516,1726383065011,-1684.67,0.00013537,2]
[338198517,1726383065020,-1712.04,0.00013537,2]
[338198518,1726383065030,-1634.51,0.00013537,2]
[338198519,1726383065039,-378.63656517,0.00013537,2]
[338198520,1726383065050,-1244.3,0.00013537,2]
[338198521,1726383065060,-500.0,0.00013537,2]
[338198522,1726383065078,-3608.53,0.00013537,2]
[338198523,1726383065087,-758.25,0.00013537,2]
[338198524,1726383065096,-500.0,0.00013537,2]
[338198525,1726383065106,-500.0,0.00013537,2]
[338198526,1726383065115,-500.0,0.00013537,2]
[338198527,1726383065124,-1211.15,0.00013537,2]
[338198528,1726383065133,-500.0,0.00013537,2]
[338198529,1726383065142,-500.0,0.00013537,2]
[338198530,1726383065152,-500.0,0.00013537,2]
[338198531,1726383065162,-840.9,0.00013537,2]
[338198532,1726383065172,-518.57,0.00013537,2]
[338198533,1726383065182,-500.0,0.00013537,2]
[338198534,1726383065191,-807.02,0.00013537,2]
[338198535,1726383065201,-500.0,0.00013537,2]
[338198536,1726383065211,-500.0,0.00013537,2]
[338198537,1726383065220,-500.0,0.00013537,2]
[338198538,1726383065230,-569.15,0.00013537,2]
[338198539,1726383065244,-1382.61,0.00013537,2]
[338198540,1726383065254,-1040.25,0.00013537,2]
[338198541,1726383065263,-500.0,0.00013537,2]
[338198542,1726383065272,-1135.12,0.00013537,2]
[338198543,1726383065282,-500.0,0.00013537,2]
[338198544,1726383065292,-500.0,0.00013537,2]
[338198545,1726383065301,-713.69,0.00013537,2]
[338198546,1726383065310,-2061.72,0.00013537,2]
[338198547,1726383065320,-1704.58,0.00013537,2]
[338198548,1726383065330,-3330.19,0.00013537,2]
[338198549,1726383065339,-500.0,0.00013537,2]
[338198550,1726383065348,-500.0,0.00013537,2]
[338198551,1726383065357,-5796.04,0.00013537,2]
[338198552,1726383065366,-692.13,0.00013537,2]
[338198553,1726383065375,-500.0,0.00013537,2]
[338198554,1726383065384,-582.84,0.00013537,2]
[338198555,1726383065393,-519.69,0.00013537,2]
[338198556,1726383065403,-500.0,0.00013537,2]
[338198557,1726383065411,-777.37,0.00013537,2]
[338198558,1726383065421,-1819.76,0.00013537,2]
[338198559,1726383065430,-500.0,0.00013537,2]
[338198560,1726383065439,-500.0,0.00013537,2]
[338198561,1726383065448,-500.0,0.00013537,2]
[338198562,1726383065458,-1369.04,0.00013537,2]
[338198563,1726383065467,-3831.92,0.00013537,2]
[338198564,1726383065476,-567.14,0.00013537,2]
[338198565,1726383065485,-3607.93,0.00013537,2]
[338198566,1726383065494,-1866.69,0.00013537,2]
[338198567,1726383065503,-500.0,0.00013537,2]
[338198568,1726383065513,-605.96490852,0.00013537,2]
[338198569,1726383065522,-500.0,0.00013537,2]
[338198570,1726383065531,-500.0,0.00013537,2]
[338198571,1726383065540,-2466.99,0.00013537,2]
[338198572,1726383065549,-784.17,0.00013537,2]
[338198573,1726383065559,-500.0,0.00013537,2]
[338198574,1726383065568,-738.72,0.00013537,2]
[338198575,1726383065577,-639.7,0.00013537,2]
[338198576,1726383065586,-1762.02,0.00013537,2]
[338198577,1726383065596,-500.0,0.00013537,2]
[338198578,1726383065605,-500.0,0.00013537,2]
[338198579,1726383065615,-500.0,0.00013537,2]
[338198580,1726383065624,-500.0,0.00013537,2]
[338198581,1726383065633,-13206.02,0.00013537,2]
[338198582,1726383065642,-774.47,0.00013537,2]
[338198583,1726383065651,-835.1,0.00013537,2]
[338198584,1726383065660,-1455.72,0.00013537,2]
[338198585,1726383065669,-3106.01,0.00013537,2]
[338198586,1726383065678,-1612.19,0.00013537,2]
[338198587,1726383065687,-500.0,0.00013537,2]
[338198588,1726383065696,-5972.43,0.00013537,2]
[338198589,1726383065705,-888.09,0.00013537,2]
[338198590,1726383065714,-3358.41,0.00013537,2]
[338198591,1726383065723,-2500.03,0.00013537,2]
[338198592,1726383065732,-2470.01,0.00013537,2]
[338198593,1726383065741,-500.0,0.00013537,2]
[338198594,1726383065750,-1353.44,0.00013537,2]
[338198595,1726383065759,-6107.22597251,0.00013537,2]
[338198596,1726383065793,-940.096497,0.00013537,2]
[338198597,1726383066664,-6246.50973598,0.00013537,2]
[338198598,1726383066676,-463.29586362,0.00013537,2]
[338198599,1726383066688,-1244.46323874,0.00013537,2]
[338198600,1726383067456,-500.0,0.0001299,2]
[338198601,1726383067466,-500.0,0.00013263,2]
[338198602,1726383067476,-500.0,0.00013264,2]
[338198603,1726383067486,-16840.12869215,0.00013537,2]
[338198604,1726383067495,-500.0,0.00013537,2]
[338198605,1726383067505,-2104.66644765,0.00013537,2]
[338198606,1726383067517,-580.59172386,0.00013537,2]
[338198607,1726383067529,-2835.13175938,0.00013537,2]
[338198608,1726383067595,-276.345,0.00013537,2]
[338198609,1726383067607,-313.06330969,0.00013537,2]
[338198610,1726383067629,-1048.56175942,0.00013537,2]
[338198611,1726383067638,-10.14447962,0.00013537,2]
[338198612,1726383067649,-1367.99179144,0.00013537,2]
[338198613,1726383067664,-1216.70372894,0.00013537,2]
[338198614,1726383067674,-2470.37,0.00013537,2]
[338198615,1726383067683,-167.0932711,0.00013537,2]
[338198616,1726383067694,-532.1467289,0.00013537,2]
[338198617,1726383067703,-41.12482345,0.00013537,2]
[338198618,1726383067715,-458.87517655,0.00013537,2]
[338198619,1726383067724,-500.0,0.00013537,2]
[338198620,1726383067734,-857.1,0.00013537,2]
[338198621,1726383067744,-84.02482345,0.00013537,2]
[338198622,1726383231184,406.44,0.00012482,2]
[338198623,1726383282565,1000.0,0.00012461,2]
[338198624,1726383426102,250.0,0.00012436,2]
[338198626,1726383548563,377.73,0.00012401,2]
[338198627,1726383586952,240.92,0.00010483,2]
[338198630,1726383640553,464.74,0.00010959,2]
[338198631,1726383651087,450.75,0.00010959,2]
[338198632,1726383657395,600.0,0.00011164,2]
[338198633,1726383661819,519.87,0.00010959,2]
[338198634,1726383672363,433.22,0.00010959,2]
[338198635,1726383682063,500.0,0.00011164,2]
[338198636,1726383682860,361.02,0.00010959,2]
[338198637,1726383693634,300.85,0.00010959,2]
[338198638,1726383699396,150.0,0.0001238,2]
[338198639,1726383700848,157.41,0.00010959,2]
[338198640,1726383704169,250.71,0.00010959,2]
[338198641,1726383714693,208.92,0.00010959,2]
[338198642,1726383725232,174.1,0.00010959,2]
[338198643,1726383733930,245.38,0.00012299,2]
[338198644,1726383736003,870.54,0.00010959,2]
[338198646,1726383752374,171.79,0.00012257,2]
[338198648,1726383757080,180.53,0.00010959,2]
[338198649,1726383767605,150.44,0.00010959,2]
[338198650,1726383770225,500.0,0.00011164,2]
[338198652,1726383778152,752.25,0.00010959,2]
[338198653,1726383783021,157.58,0.00012297,2]
[338198654,1726383783250,157.58,0.00012302,2]
[338198655,1726383783792,157.58,0.00012306,2]
[338198656,1726383783851,157.58,0.00012311,2]
[338198657,1726383783974,157.58,0.00012316,2]
[338198658,1726383784191,157.58,0.00012321,2]
[338198659,1726383784384,157.58,0.00012325,2]
[338198660,1726383788559,157.58,0.0001233,2]
[338198661,1726383788851,157.58,0.00012335,2]
[338198662,1726383789051,157.58,0.0001234,2]
[338198663,1726383789263,157.58,0.00012344,2]
[338198664,1726383789461,77.49085252,0.00012349,2]
[338198665,1726383789486,80.08914748,0.00012349,2]
[338198666,1726383789672,157.58,0.00012354,2]
[338198667,1726383789884,157.58,0.00012358,2]
[338198668,1726383790638,200.0,0.00012272,2]
[338198669,1726383790950,502.08413574,0.00011164,2]
[338198673,1726383816981,1053.21,0.00012178,2]
[338198683,1726383898043,150.0,0.00012144,2]
[338198684,1726383898068,150.0,0.00012144,2]
[338198685,1726383898092,150.0,0.00012144,2]
[338198686,1726383898116,150.0,0.00012144,2]
[338198687,1726383898140,150.0,0.00012144,2]
[338198688,1726383898163,150.0,0.00012144,2]
[338198689,1726383898186,150.0,0.00012144,2]
[338198690,1726383898213,150.0,0.00012144,2]
[338198691,1726383898242,22700.0,0.00012144,2]
[338198694,1726383922376,150.0,0.00012162,2]
[338198695,1726383922396,150.0,0.00012162,2]
[338198696,1726383922416,150.0,0.00012162,2]
[338198697,1726383922437,150.0,0.00012162,2]
[338198698,1726383922457,150.0,0.00012162,2]
[338198699,1726383922477,150.0,0.00012162,2]
[338198700,1726383922498,150.0,0.00012162,2]
[338198701,1726383922519,150.0,0.00012162,2]
[338198702,1726383922539,150.0,0.00012162,2]
[338198703,1726383922559,135.1,0.00012162,2]
[338198705,1726383935836,150.0,0.00012148,2]
[338198706,1726383935857,100.0,0.00012148,2]
[338198708,1726384035555,150.01495782,0.00012594,2]
[338198709,1726384035583,29.24504218,0.00012594,2]
[338198710,1726384044404,374.088873,0.00012584,2]
[338198711,1726384046490,150.0,0.00012046,2]
[338198712,1726384046512,13.68,0.00012046,2]
[338198714,1726384098596,150.0,0.00010158,2]
[338198715,1726384098618,123.67,0.00010158,2]
[338198716,1726384098800,150.0,0.00012421,2]
[338198717,1726384098822,123.67,0.00012421,2]
[338198720,1726384194968,200.0,0.00012066,2]
[338198721,1726384200070,150.0,0.00012066,2]
[338198722,1726384200095,150.0,0.00012066,2]
[338198723,1726384200121,150.0,0.00012066,2]
[338198724,1726384200142,1.9,0.00012066,2]
[338198725,1726384202991,150.0,0.00012637,2]
[338198726,1726384203012,18.8,0.00012637,2]
[338198727,1726384203060,131.2,0.00012421,2]
[338198728,1726384203083,150.0,0.00012421,2]
[338198729,1726384203104,6.62031854,0.00012421,2]
[338198730,1726384203223,143.37968146,0.00012637,2]
[338198731,1726384203247,25.42031854,0.00012637,2]
[338198732,1726384203478,124.57968146,0.00012637,2]
[338198733,1726384203501,44.22031854,0.00012637,2]
[338198734,1726384203681,105.77968146,0.00012637,2]
[338198735,1726384203703,63.02031854,0.00012637,2]
[338198736,1726384205509,86.97968146,0.00012077,2]
[338198737,1726384205530,150.0,0.00012077,2]
[338198738,1726384205552,13.02031854,0.00012077,2]
[338198739,1726384207857,150.0,0.00012547,2]
[338198740,1726384207881,489.10016516,0.00012547,2]
[338198741,1726384216035,150.0,9.658e-05,2]
[338198742,1726384216065,31.79,9.658e-05,2]
[338198743,1726384231636,-500.0,0.00012647,2]
[338198744,1726384231645,-500.0,0.00012647,2]
[338198745,1726384231654,-500.0,0.00012647,2]
[338198746,1726384231664,-1000.0,0.00012647,2]
[338198747,1726384231673,-1000.0,0.00012647,2]
[338198748,1726384231682,-1000.0,0.00012647,2]
[338198749,1726384231692,-1000.0,0.00012647,2]
[338198750,1726384231701,-1000.0,0.00012647,2]
[338198751,1726384231711,-1000.0,0.00012647,2]
[338198752,1726384231722,-1000.0,0.00012647,2]
[338198753,1726384231731,-1000.0,0.00012647,2]
[338198754,1726384231741,-5252.06985116,0.00012647,2]
[338198755,1726384231750,-2326.4415,0.00012687,2]
[338198756,1726384231759,-205.93,0.00012773,2]
[338198757,1726384231768,-150.0,0.00012786,2]
[338198758,1726384231777,-892.15,0.00012786,2]
[338198759,1726384231787,-500.0,0.00012786,2]
[338198760,1726384231796,-1327.12,0.00012786,2]
[338198761,1726384231805,-324.83310721,0.00012787,2]
[338198762,1726384231815,-62378.3743,0.00012787,2]
[338198763,1726384231824,-1199.7051,0.00012787,2]
[338198765,1726384231834,-1000.0,0.00012787,2]
[338198766,1726384231843,-4964.9738,0.00012787,2]
[338198767,1726384231853,-245000.0,0.00012787,2]
[338198768,1726384231862,-150.93,0.00012877,2]
[338198769,1726384231871,-2612.13,0.00012886,2]
[338198770,1726384231881,-2142.44,0.00012886,2]
[338198771,1726384231890,-2259.49,0.00012886,2]
[338198772,1726384231899,-3198.65,0.00012886,2]
[338198773,1726384231909,-513.55,0.00012886,2]
[338198774,1726384231918,-1010.42,0.00012886,2]
[338198775,1726384231928,-2040.62,0.00012886,2]
[338198776,1726384231938,-2576.49,0.00012886,2]
[338198777,1726384231947,-1924.95,0.00012886,2]
[338198778,1726384231956,-7593.37,0.00012886,2]
[338198779,1726384231966,-3777.3,0.00012886,2]
[338198780,1726384231975,-2400.38,0.00012886,2]
[338198781,1726384231984,-3502.82,0.00012886,2]
[338198782,1726384231993,-2274.51,0.00012886,2]
[338198783,1726384232002,-1431.78,0.00012886,2]
[338198784,1726384232011,-1554.09,0.00012886,2]
[338198785,1726384232020,-643.4,0.00012886,2]
[338198786,1726384232030,-726.28,0.00012886,2]
[338198787,1726384232039,-199.5544492,0.00012887,2]
[338198788,1726384232048,-159.91869519,0.00012887,2]
[338198789,1726384232057,-31289.51842106,0.00012887,2]
[338198798,1726384237875,-1000.0,0.00012647,2]
[338198800,1726384237884,-1278.52408922,0.00012786,2]
[338198802,1726384237895,-284.16954793,0.00012786,2]
[338198804,1726384237906,-250.0,0.00012786,2]
[338198805,1726384237917,-178.61636285,0.00012786,2]
[338198807,1726384237927,-1123.15863715,0.00012886,2]
[338198821,1726384238050,-331.93136285,0.00012886,2]
[338198822,1726384238059,-555.56863715,0.00012887,2]
[338198825,1726384238070,-1733.45721338,0.00012887,2]
[338198828,1726384238096,-5410.17422841,0.00012887,2]
[338198829,1726384238106,-500.0,0.00012887,2]
[338198831,1726384238115,-363.1959,0.00012887,2]
[338198833,1726384238124,-94511.0829,0.00012887,2]
[338198835,1726384238138,-2938.4696,0.00012887,2]
[338198837,1726384238148,-937.7958,0.00012887,2]
[338198839,1726384238157,-4995.0844,0.00012887,2]
[338198841,1726384238166,-7542.1134,0.00012887,2]
[338198842,1726384238177,-764.7739,0.00012887,2]
[338198844,1726384238186,-18731.2092,0.00012887,2]
[338198846,1726384238195,-181.884,0.00012888,2]
[338198848,1726384238205,-199.5544492,0.00012888,2]
[338198850,1726384238214,-160.74645545,0.00012889,2]
[338198852,1726384238224,-3897.676,0.00012889,2]
[338198854,1726384238233,-14576.47248075,0.00012963,2]
[338198856,1726384238242,-500.0,0.00012973,2]
[338198858,1726384238252,-331.68886943,0.00012973,2]
[338198860,1726384238261,-150.93,0.00012977,2]
[338198862,1726384238271,-1617.81,0.00012986,2]
[338198864,1726384238280,-669.37,0.00012986,2]
[338198866,1726384238290,-35123.66,0.00012986,2]
[338198868,1726384238299,-2816.45,0.00012986,2]
[338198870,1726384238308,-1751.71,0.00012986,2]
[338198872,1726384238317,-749.92,0.00012986,2]
[338198874,1726384238327,-1762.77,0.00012986,2]
[338198876,1726384238336,-1211.63,0.00012986,2]
[338198878,1726384238345,-2067.45,0.00012986,2]
[338198880,1726384238355,-4082.75,0.00012986,2]
[338198882,1726384238365,-2802.8,0.00012986,2]
[338198883,1726384238374,-6431.45,0.00012986,2]
[338198885,1726384238383,-3072.06,0.00012986,2]
[338198887,1726384238393,-1193.29,0.00012987,2]
[338198889,1726384238402,-1622.18,0.00012987,2]
[338198891,1726384238412,-500.0,0.00012987,2]
[338198893,1726384238421,-500.0,0.00012987,2]
[338198895,1726384238430,-1114.1,0.00012987,2]
[338198897,1726384238440,-2473.14,0.00012987,2]
[338198899,1726384238449,-500.0,0.00012987,2]
[338198901,1726384238458,-500.0,0.00012987,2]
[338198902,1726384238467,-763.18,0.00012987,2]
[338198904,1726384238477,-2641.77,0.00012987,2]
[338198906,1726384238487,-500.0,0.00012987,2]
[338198908,1726384238497,-500.0,0.00012987,2]
[338198910,1726384238506,-500.0,0.00012987,2]
[338198912,1726384238516,-1385.34,0.00012987,2]
[338198914,1726384238526,-2337.06,0.00012987,2]
[338198916,1726384238535,-1308.81,0.00012987,2]
[338198918,1726384238544,-500.0,0.00012987,2]
[338198920,1726384238553,-500.0,0.00012987,2]
[338198922,1726384238563,-3482.22,0.00012987,2]
[338198924,1726384238572,-500.0,0.00012987,2]
[338198926,1726384238581,-1780.69,0.00012987,2]
[338198928,1726384238590,-851.26,0.00012987,2]
[338198930,1726384238600,-500.0,0.00012987,2]
[338198931,1726384238609,-1609.35,0.00012987,2]
[338198933,1726384238618,-500.0,0.00012987,2]
[338198935,1726384238628,-762.47,0.00012987,2]
[338198937,1726384238637,-500.0,0.00012987,2]
[338198939,1726384238646,-1864.22,0.00012987,2]
[338198941,1726384238656,-500.0,0.00012987,2]
[338198943,1726384238664,-2095.35,0.00012987,2]
[338198945,1726384238674,-500.0,0.00012987,2]
[338198947,1726384238683,-4443.52,0.00012987,2]
[338198949,1726384238693,-500.0,0.00012987,2]
[338198951,1726384238703,-2011.54,0.00012987,2]
[338198953,1726384238713,-500.0,0.00012987,2]
[338198955,1726384238722,-1302.52,0.00012987,2]
[338198957,1726384238734,-500.0,0.00012987,2]
[338198959,1726384238743,-500.0,0.00012987,2]
[338198961,1726384238753,-737.59,0.00012987,2]
[338198962,1726384238762,-500.0,0.00012987,2]
[338198964,1726384238771,-852.99,0.00012987,2]
[338198966,1726384238781,-2650.81,0.00012987,2]
[338198968,1726384238791,-1974.55,0.00012987,2]
[338198970,1726384238800,-500.0,0.00012987,2]
[338198972,1726384238809,-500.0,0.00012987,2]
[338198974,1726384238819,-500.0,0.00012987,2]
[338198976,1726384238828,-500.0,0.00012987,2]
[338198978,1726384238837,-601.69,0.00012987,2]
[338198980,1726384238847,-500.0,0.00012987,2]
[338198982,1726384238856,-519.7,0.00012987,2]
[338198984,1726384238865,-1283.13,0.00012987,2]
[338198986,1726384238874,-282.20122119,0.00012987,2]
[338198988,1726384238888,-744.0,0.00012987,2]
[338198990,1726384238898,-1145.09,0.00012987,2]
[338198992,1726384238907,-894.31,0.00012987,2]
[338198994,1726384238917,-500.0,0.00012987,2]
[338198996,1726384238926,-500.0,0.00012987,2]
[338198998,1726384238936,-500.0,0.00012987,2]
[338199000,1726384238945,-709.45,0.00012987,2]
[338199002,1726384238955,-500.0,0.00012987,2]
[338199004,1726384238965,-593.62338723,0.00012987,2]
[338199006,1726384238974,-500.0,0.00012987,2]
[338199007,1726384238984,-511.46,0.00012987,2]
[338199009,1726384238993,-836.9,0.00012987,2]
[338199011,1726384239003,-500.0,0.00012987,2]
[338199013,1726384239012,-2075.22,0.00012987,2]
[338199015,1726384239022,-902.45,0.00012987,2]
[338199017,1726384239031,-2120.69,0.00012987,2]
[338199019,1726384239040,-1755.42,0.00012987,2]
[338199021,1726384239050,-1023.95,0.00012987,2]
[338199022,1726384239059,-380.88667369,0.00012987,2]
[338199024,1726384239068,-500.0,0.00012987,2]
[338199026,1726384239078,-1046.03,0.00012987,2]
[338199028,1726384239088,-500.0,0.00012987,2]
[338199030,1726384239097,-500.0,0.00012987,2]
[338199032,1726384239107,-500.0,0.00012987,2]
[338199034,1726384239117,-1560.2,0.00012987,2]
[338199036,1726384239128,-500.0,0.00012987,2]
[338199038,1726384239139,-500.0,0.00012987,2]
[338199039,1726384239148,-500.0,0.00012987,2]
[338199041,1726384239157,-500.0,0.00012987,2]
[338199043,1726384239167,-1566.56,0.00012987,2]
[338199045,1726384239177,-1747.39,0.00012987,2]
[338199047,1726384239187,-500.0,0.00012987,2]
[338199049,1726384239196,-500.0,0.00012987,2]
[338199051,1726384239206,-500.0,0.00012987,2]
[338199053,1726384239215,-500.0,0.00012987,2]
[338199055,1726384239227,-500.0,0.00012987,2]
[338199057,1726384239236,-892.45,0.00012987,2]
[338199059,1726384239245,-500.0,0.00012987,2]
[338199061,1726384239255,-735.78,0.00012987,2]
[338199063,1726384239265,-500.0,0.00012987,2]
[338199065,1726384239274,-571.19,0.00012987,2]
[338199067,1726384239284,-500.0,0.00012987,2]
[338199068,1726384239294,-500.0,0.00012987,2]
[338199070,1726384239303,-947.65,0.00012987,2]
[338199072,1726384239313,-500.0,0.00012987,2]
[338199074,1726384239322,-500.0,0.00012987,2]
[338199075,1726384239331,-500.0,0.00012987,2]
[338199077,1726384239341,-500.0,0.00012987,2]
[338199079,1726384239350,-500.0,0.00012987,2]
[338199081,1726384239360,-500.0,0.00012987,2]
[338199083,1726384239369,-500.0,0.00012987,2]
[338199085,1726384239379,-1036.25,0.00012987,2]
[338199087,1726384239388,-500.0,0.00012987,2]
[338199089,1726384239398,-500.0,0.00012987,2]
[338199091,1726384239407,-500.0,0.00012987,2]
[338199093,1726384239417,-2093.32,0.00012987,2]
[338199095,1726384239427,-500.0,0.00012987,2]
[338199097,1726384239436,-623.98,0.00012987,2]
[338199099,1726384239445,-500.0,0.00012987,2]
[338199101,1726384239455,-257.07461348,0.00012987,2]
[338199103,1726384239465,-500.0,0.00012987,2]
[338199105,1726384239474,-500.0,0.00012987,2]
[338199106,1726384239483,-500.0,0.00012987,2]
[338199108,1726384239492,-500.0,0.00012987,2]
[338199110,1726384239501,-500.0,0.00012987,2]
[338199112,1726384239511,-504.45,0.00012987,2]
[338199114,1726384239520,-500.0,0.00012987,2]
[338199115,1726384239529,-500.0,0.00012987,2]
[338199117,1726384239538,-500.0,0.00012987,2]
[338199119,1726384239547,-500.0,0.00012987,2]
[338199121,1726384239556,-500.0,0.00012987,2]